{"text_format":"3","workbook":"xlsx","n_sheets":4,"sheets":["Приладна дошка","Бюджет","Настроювання","Дані діаграми"],"not_rendered":{"charts":2,"images":1,"defined_names":43},"read":"whole","date_system":"1900"}

{"sheet":"Приладна дошка","index":0,"n_rows":13,"n_cols":14,"rows_kept":13,"merged":[[2,0,4,2],[6,0,8,2],[10,0,12,2]]}
[{"$nulls":13},{"$f":"\" ІНТЕРАКТИВНИЙ БЮДЖЕТ \"&Назвабюджету","v":" ІНТЕРАКТИВНИЙ БЮДЖЕТ СІМ’Я КОВАЛЕНКІВ 2012 Р."}]
[]
[{"$f":"'Дані діаграми'!C38","v":{"v":4000,"d":"4,000₴"}}]
[]
[{"$nulls":3},"дохід"]
[]
[{"$f":"'Дані діаграми'!C39","v":{"v":5933,"d":"5,933₴"}}]
[]
[{"$nulls":3},"витрати"]
[]
[{"$f":"'Дані діаграми'!D40&'Дані діаграми'!C40&\"₴\"","v":"-1933₴"}]
[]
[{"$nulls":3},"рух готівки"]

{"sheet":"Бюджет","index":1,"n_rows":131,"n_cols":16,"rows_kept":131,"merged":[[18,1,18,13],[27,1,27,13],[36,1,36,13],[45,1,45,13],[54,1,54,13],[61,1,61,13],[68,1,68,13],[75,1,75,13],[82,1,82,13],[89,1,89,13],[96,1,96,13],[103,1,103,13],[110,1,110,13],[117,1,117,13],[124,1,124,13]]}
[null,null,"січ","лют","бер","кві","тра","чер","лип","сер","вер","жов","лис","гру","рік","у середньому"]
[]
[]
[]
[null,"Початкове сальдо",1000]
[null,"Загальний дохід",{"$f":"SUM(tbl_дохід[jan])","v":4222},{"$f":"SUM(tbl_дохід[feb])","v":9033},{"$f":"SUM(tbl_дохід[mar])","v":4000},{"$f":"SUM(tbl_дохід[apr])","v":4045},{"$f":"SUM(tbl_дохід[may])","v":9000},{"$f":"SUM(tbl_дохід[jun])","v":1525},{"$f":"SUM(tbl_дохід[jul])","v":1500},{"$f":"SUM(tbl_дохід[aug])","v":6500},{"$f":"SUM(tbl_дохід[sep])","v":4000},{"$f":"SUM(tbl_дохід[oct])","v":4000},{"$f":"SUM(tbl_дохід[nov])","v":9000},{"$f":"SUM(tbl_дохід[dec])","v":4000},{"$f":"SUM(tbl_дохід[year])","v":60825},{"$f":"O6/12","v":{"v":5068.75,"d":"5069"}}]
[null,"Загальні витрати",{"$f":"SUM(tbl_категорія_витрат_01[jan],tbl_категорія_витрат_02[jan],tbl_категорія_витрат_03[jan],tbl_категорія_витрат_04[jan],tbl_категорія_витрат_05[jan],tbl_категорія_витрат_06[jan],tbl_категорія_витрат_07[jan],tbl_категорія_витрат_08[jan],tbl_категорія_витрат_09[jan],tbl_категорія_витрат_10[jan],tbl_категорія_витрат_11[jan],tbl_категорія_витрат_12[jan],tbl_категорія_витрат_13[jan],tbl_категорія_витрат_14[jan],tbl_категорія_витрат_15[jan])","v":7936},{"$f":"SUM(tbl_категорія_витрат_01[feb],tbl_категорія_витрат_02[feb],tbl_категорія_витрат_03[feb],tbl_категорія_витрат_04[feb],tbl_категорія_витрат_05[feb],tbl_категорія_витрат_06[feb],tbl_категорія_витрат_07[feb],tbl_категорія_витрат_08[feb],tbl_категорія_витрат_09[feb],tbl_категорія_витрат_10[feb],tbl_категорія_витрат_11[feb],tbl_категорія_витрат_12[feb],tbl_категорія_витрат_13[feb],tbl_категорія_витрат_14[feb],tbl_категорія_витрат_15[feb])","v":5243},{"$f":"SUM(tbl_категорія_витрат_01[mar],tbl_категорія_витрат_02[mar],tbl_категорія_витрат_03[mar],tbl_категорія_витрат_04[mar],tbl_категорія_витрат_05[mar],tbl_категорія_витрат_06[mar],tbl_категорія_витрат_07[mar],tbl_категорія_витрат_08[mar],tbl_категорія_витрат_09[mar],tbl_категорія_витрат_10[mar],tbl_категорія_витрат_11[mar],tbl_категорія_витрат_12[mar],tbl_категорія_витрат_13[mar],tbl_категорія_витрат_14[mar],tbl_категорія_витрат_15[mar])","v":5933},{"$f":"SUM(tbl_категорія_витрат_01[apr],tbl_категорія_витрат_02[apr],tbl_категорія_витрат_03[apr],tbl_категорія_витрат_04[apr],tbl_категорія_витрат_05[apr],tbl_категорія_витрат_06[apr],tbl_категорія_витрат_07[apr],tbl_категорія_витрат_08[apr],tbl_категорія_витрат_09[apr],tbl_категорія_витрат_10[apr],tbl_категорія_витрат_11[apr],tbl_категорія_витрат_12[apr],tbl_категорія_витрат_13[apr],tbl_категорія_витрат_14[apr],tbl_категорія_витрат_15[apr])","v":5858},{"$f":"SUM(tbl_категорія_витрат_01[may],tbl_категорія_витрат_02[may],tbl_категорія_витрат_03[may],tbl_категорія_витрат_04[may],tbl_категорія_витрат_05[may],tbl_категорія_витрат_06[may],tbl_категорія_витрат_07[may],tbl_категорія_витрат_08[may],tbl_категорія_витрат_09[may],tbl_категорія_витрат_10[may],tbl_категорія_витрат_11[may],tbl_категорія_витрат_12[may],tbl_категорія_витрат_13[may],tbl_категорія_витрат_14[may],tbl_категорія_витрат_15[may])","v":5468},{"$f":"SUM(tbl_категорія_витрат_01[jun],tbl_категорія_витрат_02[jun],tbl_категорія_витрат_03[jun],tbl_категорія_витрат_04[jun],tbl_категорія_витрат_05[jun],tbl_категорія_витрат_06[jun],tbl_категорія_витрат_07[jun],tbl_категорія_витрат_08[jun],tbl_категорія_витрат_09[jun],tbl_категорія_витрат_10[jun],tbl_категорія_витрат_11[jun],tbl_категорія_витрат_12[jun],tbl_категорія_витрат_13[jun],tbl_категорія_витрат_14[jun],tbl_категорія_витрат_15[jun])","v":5118},{"$f":"SUM(tbl_категорія_витрат_01[jul],tbl_категорія_витрат_02[jul],tbl_категорія_витрат_03[jul],tbl_категорія_витрат_04[jul],tbl_категорія_витрат_05[jul],tbl_категорія_витрат_06[jul],tbl_категорія_витрат_07[jul],tbl_категорія_витрат_08[jul],tbl_категорія_витрат_09[jul],tbl_категорія_витрат_10[jul],tbl_категорія_витрат_11[jul],tbl_категорія_витрат_12[jul],tbl_категорія_витрат_13[jul],tbl_категорія_витрат_14[jul],tbl_категорія_витрат_15[jul])","v":5743},{"$f":"SUM(tbl_категорія_витрат_01[aug],tbl_категорія_витрат_02[aug],tbl_категорія_витрат_03[aug],tbl_категорія_витрат_04[aug],tbl_категорія_витрат_05[aug],tbl_категорія_витрат_06[aug],tbl_категорія_витрат_07[aug],tbl_категорія_витрат_08[aug],tbl_категорія_витрат_09[aug],tbl_категорія_витрат_10[aug],tbl_категорія_витрат_11[aug],tbl_категорія_витрат_12[aug],tbl_категорія_витрат_13[aug],tbl_категорія_витрат_14[aug],tbl_категорія_витрат_15[aug])","v":5353},{"$f":"SUM(tbl_категорія_витрат_01[sep],tbl_категорія_витрат_02[sep],tbl_категорія_витрат_03[sep],tbl_категорія_витрат_04[sep],tbl_категорія_витрат_05[sep],tbl_категорія_витрат_06[sep],tbl_категорія_витрат_07[sep],tbl_категорія_витрат_08[sep],tbl_категорія_витрат_09[sep],tbl_категорія_витрат_10[sep],tbl_категорія_витрат_11[sep],tbl_категорія_витрат_12[sep],tbl_категорія_витрат_13[sep],tbl_категорія_витрат_14[sep],tbl_категорія_витрат_15[sep])","v":5983},{"$f":"SUM(tbl_категорія_витрат_01[oct],tbl_категорія_витрат_02[oct],tbl_категорія_витрат_03[oct],tbl_категорія_витрат_04[oct],tbl_категорія_витрат_05[oct],tbl_категорія_витрат_06[oct],tbl_категорія_витрат_07[oct],tbl_категорія_витрат_08[oct],tbl_категорія_витрат_09[oct],tbl_категорія_витрат_10[oct],tbl_категорія_витрат_11[oct],tbl_категорія_витрат_12[oct],tbl_категорія_витрат_13[oct],tbl_категорія_витрат_14[oct],tbl_категорія_витрат_15[oct])","v":5943},{"$f":"SUM(tbl_категорія_витрат_01[nov],tbl_категорія_витрат_02[nov],tbl_категорія_витрат_03[nov],tbl_категорія_витрат_04[nov],tbl_категорія_витрат_05[nov],tbl_категорія_витрат_06[nov],tbl_категорія_витрат_07[nov],tbl_категорія_витрат_08[nov],tbl_категорія_витрат_09[nov],tbl_категорія_витрат_10[nov],tbl_категорія_витрат_11[nov],tbl_категорія_витрат_12[nov],tbl_категорія_витрат_13[nov],tbl_категорія_витрат_14[nov],tbl_категорія_витрат_15[nov])","v":5058},{"$f":"SUM(tbl_категорія_витрат_01[dec],tbl_категорія_витрат_02[dec],tbl_категорія_витрат_03[dec],tbl_категорія_витрат_04[dec],tbl_категорія_витрат_05[dec],tbl_категорія_витрат_06[dec],tbl_категорія_витрат_07[dec],tbl_категорія_витрат_08[dec],tbl_категорія_витрат_09[dec],tbl_категорія_витрат_10[dec],tbl_категорія_витрат_11[dec],tbl_категорія_витрат_12[dec],tbl_категорія_витрат_13[dec],tbl_категорія_витрат_14[dec],tbl_категорія_витрат_15[dec])","v":4958},{"$f":"SUM(tbl_категорія_витрат_01[year],tbl_категорія_витрат_02[year],tbl_категорія_витрат_03[year],tbl_категорія_витрат_04[year],tbl_категорія_витрат_05[year],tbl_категорія_витрат_06[year],tbl_категорія_витрат_07[year],tbl_категорія_витрат_08[year],tbl_категорія_витрат_09[year],tbl_категорія_витрат_10[year],tbl_категорія_витрат_11[year],tbl_категорія_витрат_12[year],tbl_категорія_витрат_13[year],tbl_категорія_витрат_14[year],tbl_категорія_витрат_15[year])","v":68594},{"$f":"O7/12","v":{"v":5716.166666666667,"d":"5716"}}]
[null,"Чистий дохід",{"$f":"C6-C7","v":-3714},{"$f":"D6-D7","v":3790},-1933,-1813,3532,-3593,-4243,1147,-1983,-1943,3942,-958,-7769,{"$f":"O8/12","v":{"v":-647.4166666666666,"d":"-647"}}]
[null,"ЗАГАЛЬНИЙ РУХ ГОТІВКИ",{"$f":"C5+C6-C7","v":-2714},{"$f":"C9+D6-D7","v":1076},{"$f":"D9+E6-E7","v":-857},-2670,862,-2731,-6974,-5827,-7810,-9753,-5811,-6769]
[]
[]
[null,"дохід"]
[null,"Заробітна плата",4000,4000,4000,4000,4000,1000,1000,1000,4000,4000,4000,4000,{"$f":"SUM(tbl_дохід[[#This Row],[jan]:[dec]])","v":39000},{"$f":"tbl_дохід[[#This Row],[year]]/12","v":3250}]
[null,"Відсотковий дохід",222,33,null,45,null,25,{"$nulls":6},{"$f":"SUM(tbl_дохід[[#This Row],[jan]:[dec]])","v":325},{"$f":"tbl_дохід[[#This Row],[year]]/12","v":{"v":27.083333333333332,"d":"27"}}]
[null,"Дивіденди",null,5000,null,null,5000,null,null,5000,null,null,5000,null,{"$f":"SUM(tbl_дохід[[#This Row],[jan]:[dec]])","v":20000},{"$f":"tbl_дохід[[#This Row],[year]]/12","v":{"v":1666.6666666666667,"d":"1667"}}]
[null,"виплати та компенсації",{"$nulls":5},500,500,500,{"$nulls":4},{"$f":"SUM(tbl_дохід[[#This Row],[jan]:[dec]])","v":1500},{"$f":"tbl_дохід[[#This Row],[year]]/12","v":125}]
[null,"Інше",{"$nulls":12},{"$f":"SUM(tbl_дохід[[#This Row],[jan]:[dec]])","v":0},{"$f":"tbl_дохід[[#This Row],[year]]/12","v":0}]
[null,"ЗАГАЛЬНИЙ ДОХІД",{"$f":"SUM(tbl_дохід[jan])","v":4222},{"$f":"SUM(tbl_дохід[feb])","v":9033},{"$f":"SUM(tbl_дохід[mar])","v":4000},{"$f":"SUM(tbl_дохід[apr])","v":4045},{"$f":"SUM(tbl_дохід[may])","v":9000},{"$f":"SUM(tbl_дохід[jun])","v":1525},{"$f":"SUM(tbl_дохід[jul])","v":1500},{"$f":"SUM(tbl_дохід[aug])","v":6500},{"$f":"SUM(tbl_дохід[sep])","v":4000},{"$f":"SUM(tbl_дохід[oct])","v":4000},{"$f":"SUM(tbl_дохід[nov])","v":9000},{"$f":"SUM(tbl_дохід[dec])","v":4000},{"$f":"SUM(tbl_дохід[year])","v":60825},{"$f":"tbl_дохід[[#Totals],[year]]/12","v":{"v":5068.75,"d":"5069"}}]
[]
[]
[null,"житло"]
[null,"Кредит або орендна плата",850,850,850,850,850,850,850,850,850,850,900,900,{"$f":"SUM(tbl_категорія_витрат_01[[#This Row],[jan]:[dec]])","v":10300},{"$f":"tbl_категорія_витрат_01[[#This Row],[year]]/12","v":{"v":858.3333333333334,"d":"858"}}]
[null,"Електроенергія",200,200,175,150,150,175,225,275,200,150,150,150,{"$f":"SUM(tbl_категорія_витрат_01[[#This Row],[jan]:[dec]])","v":2200},{"$f":"tbl_категорія_витрат_01[[#This Row],[year]]/12","v":{"v":183.33333333333334,"d":"183"}}]
[null,"Телефон",50,50,100,100,50,50,100,100,50,50,50,50,{"$f":"SUM(tbl_категорія_витрат_01[[#This Row],[jan]:[dec]])","v":800},{"$f":"tbl_категорія_витрат_01[[#This Row],[year]]/12","v":{"v":66.66666666666667,"d":"67"}}]
[null,"Кабельне або супутникове телебачення",69,69,69,69,69,69,69,69,69,69,69,69,{"$f":"SUM(tbl_категорія_витрат_01[[#This Row],[jan]:[dec]])","v":828},{"$f":"tbl_категорія_витрат_01[[#This Row],[year]]/12","v":69}]
[null,"Інтернет",39,39,39,39,39,39,39,39,39,39,39,39,{"$f":"SUM(tbl_категорія_витрат_01[[#This Row],[jan]:[dec]])","v":468},{"$f":"tbl_категорія_витрат_01[[#This Row],[year]]/12","v":39}]
[null,{"$f":"UPPER(\"РАЗОМ ПО \" & B21)","v":"РАЗОМ ПО ЖИТЛО"},{"$f":"SUM(tbl_категорія_витрат_01[jan])","v":1208},{"$f":"SUM(tbl_категорія_витрат_01[feb])","v":1208},{"$f":"SUM(tbl_категорія_витрат_01[mar])","v":1233},{"$f":"SUM(tbl_категорія_витрат_01[apr])","v":1208},{"$f":"SUM(tbl_категорія_витрат_01[may])","v":1158},{"$f":"SUM(tbl_категорія_витрат_01[jun])","v":1183},{"$f":"SUM(tbl_категорія_витрат_01[jul])","v":1283},{"$f":"SUM(tbl_категорія_витрат_01[aug])","v":1333},{"$f":"SUM(tbl_категорія_витрат_01[sep])","v":1208},{"$f":"SUM(tbl_категорія_витрат_01[oct])","v":1158},{"$f":"SUM(tbl_категорія_витрат_01[nov])","v":1208},{"$f":"SUM(tbl_категорія_витрат_01[dec])","v":1208},{"$f":"SUM(tbl_категорія_витрат_01[year])","v":14596},{"$f":"tbl_категорія_витрат_01[[#Totals],[year]]/12","v":{"v":1216.3333333333333,"d":"1216"}}]
[]
[]
[null,"щоденні потреби"]
[null,"Бакалія",345,250,200,400,350,250,400,350,250,400,350,250,{"$f":"SUM(tbl_категорія_витрат_02[[#This Row],[jan]:[dec]])","v":3795},{"$f":"tbl_категорія_витрат_02[[#This Row],[year]]/12","v":{"v":316.25,"d":"316"}}]
[null,"Одяг",300,null,null,300,null,null,300,null,null,300,null,null,{"$f":"SUM(tbl_категорія_витрат_02[[#This Row],[jan]:[dec]])","v":1200},{"$f":"tbl_категорія_витрат_02[[#This Row],[year]]/12","v":100}]
[null,"Ресторан або їдальня",125,125,300,125,125,200,125,125,125,125,125,125,{"$f":"SUM(tbl_категорія_витрат_02[[#This Row],[jan]:[dec]])","v":1750},{"$f":"tbl_категорія_витрат_02[[#This Row],[year]]/12","v":{"v":145.83333333333334,"d":"146"}}]
[null,"Салон краси та перукарня",25,null,50,null,25,null,50,null,25,null,100,null,{"$f":"SUM(tbl_категорія_витрат_02[[#This Row],[jan]:[dec]])","v":275},{"$f":"tbl_категорія_витрат_02[[#This Row],[year]]/12","v":{"v":22.916666666666668,"d":"23"}}]
[null,"Інше",{"$nulls":12},{"$f":"SUM(tbl_категорія_витрат_02[[#This Row],[jan]:[dec]])","v":0},{"$f":"tbl_категорія_витрат_02[[#This Row],[year]]/12","v":0}]
[null,{"$f":"UPPER(\"РАЗОМ ПО \" & B30)","v":"РАЗОМ ПО ЩОДЕННІ ПОТРЕБИ"},{"$f":"SUM(tbl_категорія_витрат_02[jan])","v":795},{"$f":"SUM(tbl_категорія_витрат_02[feb])","v":375},{"$f":"SUM(tbl_категорія_витрат_02[mar])","v":550},{"$f":"SUM(tbl_категорія_витрат_02[apr])","v":825},{"$f":"SUM(tbl_категорія_витрат_02[may])","v":500},{"$f":"SUM(tbl_категорія_витрат_02[jun])","v":450},{"$f":"SUM(tbl_категорія_витрат_02[jul])","v":875},{"$f":"SUM(tbl_категорія_витрат_02[aug])","v":475},{"$f":"SUM(tbl_категорія_витрат_02[sep])","v":400},{"$f":"SUM(tbl_категорія_витрат_02[oct])","v":825},{"$f":"SUM(tbl_категорія_витрат_02[nov])","v":575},{"$f":"SUM(tbl_категорія_витрат_02[dec])","v":375},{"$f":"SUM(tbl_категорія_витрат_02[year])","v":7020},{"$f":"tbl_категорія_витрат_02[[#Totals],[year]]/12","v":585}]
[]
[]
[null,"діти"]
[null,"Шкільне приладдя",123,null,100,{"$nulls":4},345,{"$nulls":4},{"$f":"SUM(tbl_категорія_витрат_03[[#This Row],[jan]:[dec]])","v":568},{"$f":"tbl_категорія_витрат_03[[#This Row],[year]]/12","v":{"v":47.333333333333336,"d":"47"}}]
[null,"Одяг",null,100,null,null,100,{"$nulls":3},100,null,null,100,{"$f":"SUM(tbl_категорія_витрат_03[[#This Row],[jan]:[dec]])","v":400},{"$f":"tbl_категорія_витрат_03[[#This Row],[year]]/12","v":{"v":33.333333333333336,"d":"33"}}]
[null,"Шкільний обід",50,50,50,50,50,50,null,null,50,50,50,50,{"$f":"SUM(tbl_категорія_витрат_03[[#This Row],[jan]:[dec]])","v":500},{"$f":"tbl_категорія_витрат_03[[#This Row],[year]]/12","v":{"v":41.666666666666664,"d":"42"}}]
[null,"Лікування",200,200,200,200,200,200,200,200,200,200,200,200,{"$f":"SUM(tbl_категорія_витрат_03[[#This Row],[jan]:[dec]])","v":2400},{"$f":"tbl_категорія_витрат_03[[#This Row],[year]]/12","v":200}]
[null,"Інше",2000,150,{"$nulls":3},200,{"$nulls":3},100,null,null,{"$f":"SUM(tbl_категорія_витрат_03[[#This Row],[jan]:[dec]])","v":2450},{"$f":"tbl_категорія_витрат_03[[#This Row],[year]]/12","v":{"v":204.16666666666666,"d":"204"}}]
[null,{"$f":"UPPER(\"РАЗОМ ПО \" & B39)","v":"РАЗОМ ПО ДІТИ"},{"$f":"SUM(tbl_категорія_витрат_03[jan])","v":2373},{"$f":"SUM(tbl_категорія_витрат_03[feb])","v":500},{"$f":"SUM(tbl_категорія_витрат_03[mar])","v":350},{"$f":"SUM(tbl_категорія_витрат_03[apr])","v":250},{"$f":"SUM(tbl_категорія_витрат_03[may])","v":350},{"$f":"SUM(tbl_категорія_витрат_03[jun])","v":450},{"$f":"SUM(tbl_категорія_витрат_03[jul])","v":200},{"$f":"SUM(tbl_категорія_витрат_03[aug])","v":545},{"$f":"SUM(tbl_категорія_витрат_03[sep])","v":350},{"$f":"SUM(tbl_категорія_витрат_03[oct])","v":350},{"$f":"SUM(tbl_категорія_витрат_03[nov])","v":250},{"$f":"SUM(tbl_категорія_витрат_03[dec])","v":350},{"$f":"SUM(tbl_категорія_витрат_03[year])","v":6318},{"$f":"tbl_категорія_витрат_03[[#Totals],[year]]/12","v":{"v":526.5,"d":"527"}}]
[]
[]
[null,"транспорт"]
[null,"Витрати на утримання авто",600,600,600,600,600,600,600,600,600,600,600,600,{"$f":"SUM(tbl_категорія_витрат_04[[#This Row],[jan]:[dec]])","v":7200},{"$f":"tbl_категорія_витрат_04[[#This Row],[year]]/12","v":600}]
[null,"Бензин",325,325,325,325,325,500,500,500,325,325,325,325,{"$f":"SUM(tbl_категорія_витрат_04[[#This Row],[jan]:[dec]])","v":4425},{"$f":"tbl_категорія_витрат_04[[#This Row],[year]]/12","v":{"v":368.75,"d":"369"}}]
[null,"Ремонт",null,100,null,100,null,100,null,100,null,100,null,null,{"$f":"SUM(tbl_категорія_витрат_04[[#This Row],[jan]:[dec]])","v":500},{"$f":"tbl_категорія_витрат_04[[#This Row],[year]]/12","v":{"v":41.666666666666664,"d":"42"}}]
[null,"Реєстрація",185,{"$nulls":7},225,{"$nulls":3},{"$f":"SUM(tbl_категорія_витрат_04[[#This Row],[jan]:[dec]])","v":410},{"$f":"tbl_категорія_витрат_04[[#This Row],[year]]/12","v":{"v":34.166666666666664,"d":"34"}}]
[null,"Інше",{"$nulls":4},400,{"$nulls":7},{"$f":"SUM(tbl_категорія_витрат_04[[#This Row],[jan]:[dec]])","v":400},{"$f":"tbl_категорія_витрат_04[[#This Row],[year]]/12","v":{"v":33.333333333333336,"d":"33"}}]
[null,{"$f":"UPPER(\"РАЗОМ ПО \" & B48)","v":"РАЗОМ ПО ТРАНСПОРТ"},{"$f":"SUM(tbl_категорія_витрат_04[jan])","v":1110},{"$f":"SUM(tbl_категорія_витрат_04[feb])","v":1025},{"$f":"SUM(tbl_категорія_витрат_04[mar])","v":925},{"$f":"SUM(tbl_категорія_витрат_04[apr])","v":1025},{"$f":"SUM(tbl_категорія_витрат_04[may])","v":1325},{"$f":"SUM(tbl_категорія_витрат_04[jun])","v":1200},{"$f":"SUM(tbl_категорія_витрат_04[jul])","v":1100},{"$f":"SUM(tbl_категорія_витрат_04[aug])","v":1200},{"$f":"SUM(tbl_категорія_витрат_04[sep])","v":1150},{"$f":"SUM(tbl_категорія_витрат_04[oct])","v":1025},{"$f":"SUM(tbl_категорія_витрат_04[nov])","v":925},{"$f":"SUM(tbl_категорія_витрат_04[dec])","v":925},{"$f":"SUM(tbl_категорія_витрат_04[year])","v":12935},{"$f":"tbl_категорія_витрат_04[[#Totals],[year]]/12","v":{"v":1077.9166666666667,"d":"1078"}}]
[]
[]
[null,"лікування"]
[null,"Терапевт або стоматолог",null,35,null,null,35,35,35,null,null,35,null,null,{"$f":"SUM(tbl_категорія_витрат_05[[#This Row],[jan]:[dec]])","v":175},{"$f":"tbl_категорія_витрат_05[[#This Row],[year]]/12","v":{"v":14.583333333333334,"d":"15"}}]
[null,"Лікування та ліки",25,25,25,25,25,25,25,25,25,25,25,25,{"$f":"SUM(tbl_категорія_витрат_05[[#This Row],[jan]:[dec]])","v":300},{"$f":"tbl_категорія_витрат_05[[#This Row],[year]]/12","v":25}]
[null,"Інше",null,null,150,{"$nulls":5},150,{"$nulls":3},{"$f":"SUM(tbl_категорія_витрат_05[[#This Row],[jan]:[dec]])","v":300},{"$f":"tbl_категорія_витрат_05[[#This Row],[year]]/12","v":25}]
[null,{"$f":"UPPER(\"РАЗОМ ПО \" & B57)","v":"РАЗОМ ПО ЛІКУВАННЯ"},{"$f":"SUM(tbl_категорія_витрат_05[jan])","v":25},{"$f":"SUM(tbl_категорія_витрат_05[feb])","v":60},{"$f":"SUM(tbl_категорія_витрат_05[mar])","v":175},{"$f":"SUM(tbl_категорія_витрат_05[apr])","v":25},{"$f":"SUM(tbl_категорія_витрат_05[may])","v":60},{"$f":"SUM(tbl_категорія_витрат_05[jun])","v":60},{"$f":"SUM(tbl_категорія_витрат_05[jul])","v":60},{"$f":"SUM(tbl_категорія_витрат_05[aug])","v":25},{"$f":"SUM(tbl_категорія_витрат_05[sep])","v":175},{"$f":"SUM(tbl_категорія_витрат_05[oct])","v":60},{"$f":"SUM(tbl_категорія_витрат_05[nov])","v":25},{"$f":"SUM(tbl_категорія_витрат_05[dec])","v":25},{"$f":"SUM(tbl_категорія_витрат_05[year])","v":775},{"$f":"tbl_категорія_витрат_05[[#Totals],[year]]/12","v":{"v":64.58333333333333,"d":"65"}}]
[]
[]
[null,"страхування"]
[null,"Авто",150,150,150,150,150,150,150,150,150,150,150,150,{"$f":"SUM(tbl_категорія_витрат_06[[#This Row],[jan]:[dec]])","v":1800},{"$f":"tbl_категорія_витрат_06[[#This Row],[year]]/12","v":150}]
[null,"Здоров’я",675,675,675,675,675,675,675,675,675,675,675,675,{"$f":"SUM(tbl_категорія_витрат_06[[#This Row],[jan]:[dec]])","v":8100},{"$f":"tbl_категорія_витрат_06[[#This Row],[year]]/12","v":675}]
[null,"Життя",150,150,150,150,150,150,150,150,150,150,150,150,{"$f":"SUM(tbl_категорія_витрат_06[[#This Row],[jan]:[dec]])","v":1800},{"$f":"tbl_категорія_витрат_06[[#This Row],[year]]/12","v":150}]
[null,{"$f":"UPPER(\"РАЗОМ ПО \" & B64)","v":"РАЗОМ ПО СТРАХУВАННЯ"},{"$f":"SUM(tbl_категорія_витрат_06[jan])","v":975},{"$f":"SUM(tbl_категорія_витрат_06[feb])","v":975},{"$f":"SUM(tbl_категорія_витрат_06[mar])","v":975},{"$f":"SUM(tbl_категорія_витрат_06[apr])","v":975},{"$f":"SUM(tbl_категорія_витрат_06[may])","v":975},{"$f":"SUM(tbl_категорія_витрат_06[jun])","v":975},{"$f":"SUM(tbl_категорія_витрат_06[jul])","v":975},{"$f":"SUM(tbl_категорія_витрат_06[aug])","v":975},{"$f":"SUM(tbl_категорія_витрат_06[sep])","v":975},{"$f":"SUM(tbl_категорія_витрат_06[oct])","v":975},{"$f":"SUM(tbl_категорія_витрат_06[nov])","v":975},{"$f":"SUM(tbl_категорія_витрат_06[dec])","v":975},{"$f":"SUM(tbl_категорія_витрат_06[year])","v":11700},{"$f":"tbl_категорія_витрат_06[[#Totals],[year]]/12","v":975}]
[]
[]
[null,"освіта"]
[null,"Плата за навчання",null,null,400,{"$nulls":5},400,{"$nulls":3},{"$f":"SUM(tbl_категорія_витрат_07[[#This Row],[jan]:[dec]])","v":800},{"$f":"tbl_категорія_витрат_07[[#This Row],[year]]/12","v":{"v":66.66666666666667,"d":"67"}}]
[null,"Книжки",null,null,225,{"$nulls":5},225,{"$nulls":3},{"$f":"SUM(tbl_категорія_витрат_07[[#This Row],[jan]:[dec]])","v":450},{"$f":"tbl_категорія_витрат_07[[#This Row],[year]]/12","v":{"v":37.5,"d":"38"}}]
[null,"Інше",{"$nulls":12},{"$f":"SUM(tbl_категорія_витрат_07[[#This Row],[jan]:[dec]])","v":0},{"$f":"tbl_категорія_витрат_07[[#This Row],[year]]/12","v":0}]
[null,{"$f":"UPPER(\"РАЗОМ ПО \" & B71)","v":"РАЗОМ ПО ОСВІТА"},{"$f":"SUM(tbl_категорія_витрат_07[jan])","v":0},{"$f":"SUM(tbl_категорія_витрат_07[feb])","v":0},{"$f":"SUM(tbl_категорія_витрат_07[mar])","v":625},{"$f":"SUM(tbl_категорія_витрат_07[apr])","v":0},{"$f":"SUM(tbl_категорія_витрат_07[may])","v":0},{"$f":"SUM(tbl_категорія_витрат_07[jun])","v":0},{"$f":"SUM(tbl_категорія_витрат_07[jul])","v":0},{"$f":"SUM(tbl_категорія_витрат_07[aug])","v":0},{"$f":"SUM(tbl_категорія_витрат_07[sep])","v":625},{"$f":"SUM(tbl_категорія_витрат_07[oct])","v":0},{"$f":"SUM(tbl_категорія_витрат_07[nov])","v":0},{"$f":"SUM(tbl_категорія_витрат_07[dec])","v":0},{"$f":"SUM(tbl_категорія_витрат_07[year])","v":1250},{"$f":"tbl_категорія_витрат_07[[#Totals],[year]]/12","v":{"v":104.16666666666667,"d":"104"}}]
[]
[]
[null,"добродійність"]
[null,"Подарунки",null,100,{"$nulls":3},100,{"$nulls":3},100,null,null,{"$f":"SUM(tbl_категорія_витрат_08[[#This Row],[jan]:[dec]])","v":300},{"$f":"tbl_категорія_витрат_08[[#This Row],[year]]/12","v":25}]
[null,"Пожертви",null,null,100,null,100,null,100,null,100,null,100,null,{"$f":"SUM(tbl_категорія_витрат_08[[#This Row],[jan]:[dec]])","v":500},{"$f":"tbl_категорія_витрат_08[[#This Row],[year]]/12","v":{"v":41.666666666666664,"d":"42"}}]
[null,"Інше",{"$nulls":3},100,{"$nulls":3},100,{"$nulls":3},100,{"$f":"SUM(tbl_категорія_витрат_08[[#This Row],[jan]:[dec]])","v":300},{"$f":"tbl_категорія_витрат_08[[#This Row],[year]]/12","v":25}]
[null,{"$f":"UPPER(\"РАЗОМ ПО \" & B78)","v":"РАЗОМ ПО ДОБРОДІЙНІСТЬ"},{"$f":"SUM(tbl_категорія_витрат_08[jan])","v":0},{"$f":"SUM(tbl_категорія_витрат_08[feb])","v":100},{"$f":"SUM(tbl_категорія_витрат_08[mar])","v":100},{"$f":"SUM(tbl_категорія_витрат_08[apr])","v":100},{"$f":"SUM(tbl_категорія_витрат_08[may])","v":100},{"$f":"SUM(tbl_категорія_витрат_08[jun])","v":100},{"$f":"SUM(tbl_категорія_витрат_08[jul])","v":100},{"$f":"SUM(tbl_категорія_витрат_08[aug])","v":100},{"$f":"SUM(tbl_категорія_витрат_08[sep])","v":100},{"$f":"SUM(tbl_категорія_витрат_08[oct])","v":100},{"$f":"SUM(tbl_категорія_витрат_08[nov])","v":100},{"$f":"SUM(tbl_категорія_витрат_08[dec])","v":100},{"$f":"SUM(tbl_категорія_витрат_08[year])","v":1100},{"$f":"tbl_категорія_витрат_08[[#Totals],[year]]/12","v":{"v":91.66666666666667,"d":"92"}}]
[]
[]
[null,"заощадження"]
[null,"Страховий фонд",100,100,100,100,100,{"$nulls":3},100,100,100,100,{"$f":"SUM(tbl_категорія_витрат_09[[#This Row],[jan]:[dec]])","v":900},{"$f":"tbl_категорія_витрат_09[[#This Row],[year]]/12","v":75}]
[null,"Пенсія",500,500,500,500,500,500,500,500,500,500,500,500,{"$f":"SUM(tbl_категорія_витрат_09[[#This Row],[jan]:[dec]])","v":6000},{"$f":"tbl_категорія_витрат_09[[#This Row],[year]]/12","v":500}]
[null,"Перерахування до заощаджень",200,200,200,200,200,{"$nulls":3},200,200,200,200,{"$f":"SUM(tbl_категорія_витрат_09[[#This Row],[jan]:[dec]])","v":1800},{"$f":"tbl_категорія_витрат_09[[#This Row],[year]]/12","v":150}]
[null,{"$f":"UPPER(\"ЗАГАЛЬНІ \" & B85)","v":"ЗАГАЛЬНІ ЗАОЩАДЖЕННЯ"},{"$f":"SUM(tbl_категорія_витрат_09[jan])","v":800},{"$f":"SUM(tbl_категорія_витрат_09[feb])","v":800},{"$f":"SUM(tbl_категорія_витрат_09[mar])","v":800},{"$f":"SUM(tbl_категорія_витрат_09[apr])","v":800},{"$f":"SUM(tbl_категорія_витрат_09[may])","v":800},{"$f":"SUM(tbl_категорія_витрат_09[jun])","v":500},{"$f":"SUM(tbl_категорія_витрат_09[jul])","v":500},{"$f":"SUM(tbl_категорія_витрат_09[aug])","v":500},{"$f":"SUM(tbl_категорія_витрат_09[sep])","v":800},{"$f":"SUM(tbl_категорія_витрат_09[oct])","v":800},{"$f":"SUM(tbl_категорія_витрат_09[nov])","v":800},{"$f":"SUM(tbl_категорія_витрат_09[dec])","v":800},{"$f":"SUM(tbl_категорія_витрат_09[year])","v":8700},{"$f":"tbl_категорія_витрат_09[[#Totals],[year]]/12","v":725}]
[]
[]
[null,"грошові зобов’язання"]
[null,"Кредитна картка 1",145,145,145,145,145,145,145,145,145,145,145,145,{"$f":"SUM(tbl_категорія_витрат_10[[#This Row],[jan]:[dec]])","v":1740},{"$f":"tbl_категорія_витрат_10[[#This Row],[year]]/12","v":145}]
[null,"Податки",450,null,null,450,null,null,450,null,null,450,null,null,{"$f":"SUM(tbl_категорія_витрат_10[[#This Row],[jan]:[dec]])","v":1800},{"$f":"tbl_категорія_витрат_10[[#This Row],[year]]/12","v":150}]
[null,"Позика на навчання",55,55,55,55,55,55,55,55,55,55,55,55,{"$f":"SUM(tbl_категорія_витрат_10[[#This Row],[jan]:[dec]])","v":660},{"$f":"tbl_категорія_витрат_10[[#This Row],[year]]/12","v":55}]
[null,{"$f":"UPPER(\"ЗАГАЛЬНІ \" & B92)","v":"ЗАГАЛЬНІ ГРОШОВІ ЗОБОВ’ЯЗАННЯ"},{"$f":"SUM(tbl_категорія_витрат_10[jan])","v":650},{"$f":"SUM(tbl_категорія_витрат_10[feb])","v":200},{"$f":"SUM(tbl_категорія_витрат_10[mar])","v":200},{"$f":"SUM(tbl_категорія_витрат_10[apr])","v":650},{"$f":"SUM(tbl_категорія_витрат_10[may])","v":200},{"$f":"SUM(tbl_категорія_витрат_10[jun])","v":200},{"$f":"SUM(tbl_категорія_витрат_10[jul])","v":650},{"$f":"SUM(tbl_категорія_витрат_10[aug])","v":200},{"$f":"SUM(tbl_категорія_витрат_10[sep])","v":200},{"$f":"SUM(tbl_категорія_витрат_10[oct])","v":650},{"$f":"SUM(tbl_категорія_витрат_10[nov])","v":200},{"$f":"SUM(tbl_категорія_витрат_10[dec])","v":200},{"$f":"SUM(tbl_категорія_витрат_10[year])","v":4200},{"$f":"tbl_категорія_витрат_10[[#Totals],[year]]/12","v":350}]
[]
[]
[null," "]
[{"$nulls":14},{"$f":"SUM(tbl_категорія_витрат_11[[#This Row],[jan]:[dec]])","v":0},{"$f":"tbl_категорія_витрат_11[[#This Row],[year]]/12","v":0}]
[{"$nulls":14},{"$f":"SUM(tbl_категорія_витрат_11[[#This Row],[jan]:[dec]])","v":0},{"$f":"tbl_категорія_витрат_11[[#This Row],[year]]/12","v":0}]
[{"$nulls":14},{"$f":"SUM(tbl_категорія_витрат_11[[#This Row],[jan]:[dec]])","v":0},{"$f":"tbl_категорія_витрат_11[[#This Row],[year]]/12","v":0}]
[null,{"$f":"UPPER(\"РАЗОМ \" & B99)","v":"РАЗОМ  "},{"$f":"SUM(tbl_категорія_витрат_11[jan])","v":0},{"$f":"SUM(tbl_категорія_витрат_11[feb])","v":0},{"$f":"SUM(tbl_категорія_витрат_11[mar])","v":0},{"$f":"SUM(tbl_категорія_витрат_11[apr])","v":0},{"$f":"SUM(tbl_категорія_витрат_11[may])","v":0},{"$f":"SUM(tbl_категорія_витрат_11[jun])","v":0},{"$f":"SUM(tbl_категорія_витрат_11[jul])","v":0},{"$f":"SUM(tbl_категорія_витрат_11[aug])","v":0},{"$f":"SUM(tbl_категорія_витрат_11[sep])","v":0},{"$f":"SUM(tbl_категорія_витрат_11[oct])","v":0},{"$f":"SUM(tbl_категорія_витрат_11[nov])","v":0},{"$f":"SUM(tbl_категорія_витрат_11[dec])","v":0},{"$f":"SUM(tbl_категорія_витрат_11[year])","v":0},{"$f":"tbl_категорія_витрат_11[[#Totals],[year]]/12","v":0}]
[]
[]
[null," "]
[{"$nulls":14},{"$f":"SUM(tbl_категорія_витрат_12[[#This Row],[jan]:[dec]])","v":0},{"$f":"tbl_категорія_витрат_12[[#This Row],[year]]/12","v":0}]
[{"$nulls":14},{"$f":"SUM(tbl_категорія_витрат_12[[#This Row],[jan]:[dec]])","v":0},{"$f":"tbl_категорія_витрат_12[[#This Row],[year]]/12","v":0}]
[{"$nulls":14},{"$f":"SUM(tbl_категорія_витрат_12[[#This Row],[jan]:[dec]])","v":0},{"$f":"tbl_категорія_витрат_12[[#This Row],[year]]/12","v":0}]
[null,{"$f":"UPPER(\"РАЗОМ \" & B106)","v":"РАЗОМ  "},{"$f":"SUM(tbl_категорія_витрат_12[jan])","v":0},{"$f":"SUM(tbl_категорія_витрат_12[feb])","v":0},{"$f":"SUM(tbl_категорія_витрат_12[mar])","v":0},{"$f":"SUM(tbl_категорія_витрат_12[apr])","v":0},{"$f":"SUM(tbl_категорія_витрат_12[may])","v":0},{"$f":"SUM(tbl_категорія_витрат_12[jun])","v":0},{"$f":"SUM(tbl_категорія_витрат_12[jul])","v":0},{"$f":"SUM(tbl_категорія_витрат_12[aug])","v":0},{"$f":"SUM(tbl_категорія_витрат_12[sep])","v":0},{"$f":"SUM(tbl_категорія_витрат_12[oct])","v":0},{"$f":"SUM(tbl_категорія_витрат_12[nov])","v":0},{"$f":"SUM(tbl_категорія_витрат_12[dec])","v":0},{"$f":"SUM(tbl_категорія_витрат_12[year])","v":0},{"$f":"tbl_категорія_витрат_12[[#Totals],[year]]/12","v":0}]
[]
[]
[null," "]
[{"$nulls":14},{"$f":"SUM(tbl_категорія_витрат_13[[#This Row],[jan]:[dec]])","v":0},{"$f":"tbl_категорія_витрат_13[[#This Row],[year]]/12","v":0}]
[{"$nulls":14},{"$f":"SUM(tbl_категорія_витрат_13[[#This Row],[jan]:[dec]])","v":0},{"$f":"tbl_категорія_витрат_13[[#This Row],[year]]/12","v":0}]
[{"$nulls":14},{"$f":"SUM(tbl_категорія_витрат_13[[#This Row],[jan]:[dec]])","v":0},{"$f":"tbl_категорія_витрат_13[[#This Row],[year]]/12","v":0}]
[null,{"$f":"UPPER(\"РАЗОМ \" & B113)","v":"РАЗОМ  "},{"$f":"SUM(tbl_категорія_витрат_13[jan])","v":0},{"$f":"SUM(tbl_категорія_витрат_13[feb])","v":0},{"$f":"SUM(tbl_категорія_витрат_13[mar])","v":0},{"$f":"SUM(tbl_категорія_витрат_13[apr])","v":0},{"$f":"SUM(tbl_категорія_витрат_13[may])","v":0},{"$f":"SUM(tbl_категорія_витрат_13[jun])","v":0},{"$f":"SUM(tbl_категорія_витрат_13[jul])","v":0},{"$f":"SUM(tbl_категорія_витрат_13[aug])","v":0},{"$f":"SUM(tbl_категорія_витрат_13[sep])","v":0},{"$f":"SUM(tbl_категорія_витрат_13[oct])","v":0},{"$f":"SUM(tbl_категорія_витрат_13[nov])","v":0},{"$f":"SUM(tbl_категорія_витрат_13[dec])","v":0},{"$f":"SUM(tbl_категорія_витрат_13[year])","v":0},{"$f":"tbl_категорія_витрат_13[[#Totals],[year]]/12","v":0}]
[]
[]
[null," "]
[{"$nulls":14},{"$f":"SUM(tbl_категорія_витрат_14[[#This Row],[jan]:[dec]])","v":0},{"$f":"tbl_категорія_витрат_14[[#This Row],[year]]/12","v":0}]
[{"$nulls":14},{"$f":"SUM(tbl_категорія_витрат_14[[#This Row],[jan]:[dec]])","v":0},{"$f":"tbl_категорія_витрат_14[[#This Row],[year]]/12","v":0}]
[{"$nulls":14},{"$f":"SUM(tbl_категорія_витрат_14[[#This Row],[jan]:[dec]])","v":0},{"$f":"tbl_категорія_витрат_14[[#This Row],[year]]/12","v":0}]
[null,{"$f":"UPPER(\"РАЗОМ \" & B120)","v":"РАЗОМ  "},{"$f":"SUM(tbl_категорія_витрат_14[jan])","v":0},{"$f":"SUM(tbl_категорія_витрат_14[feb])","v":0},{"$f":"SUM(tbl_категорія_витрат_14[mar])","v":0},{"$f":"SUM(tbl_категорія_витрат_14[apr])","v":0},{"$f":"SUM(tbl_категорія_витрат_14[may])","v":0},{"$f":"SUM(tbl_категорія_витрат_14[jun])","v":0},{"$f":"SUM(tbl_категорія_витрат_14[jul])","v":0},{"$f":"SUM(tbl_категорія_витрат_14[aug])","v":0},{"$f":"SUM(tbl_категорія_витрат_14[sep])","v":0},{"$f":"SUM(tbl_категорія_витрат_14[oct])","v":0},{"$f":"SUM(tbl_категорія_витрат_14[nov])","v":0},{"$f":"SUM(tbl_категорія_витрат_14[dec])","v":0},{"$f":"SUM(tbl_категорія_витрат_14[year])","v":0},{"$f":"tbl_категорія_витрат_14[[#Totals],[year]]/12","v":0}]
[]
[]
[null," "]
[{"$nulls":14},{"$f":"SUM(tbl_категорія_витрат_15[[#This Row],[jan]:[dec]])","v":0},{"$f":"tbl_категорія_витрат_15[[#This Row],[year]]/12","v":0}]
[{"$nulls":14},{"$f":"SUM(tbl_категорія_витрат_15[[#This Row],[jan]:[dec]])","v":0},{"$f":"tbl_категорія_витрат_15[[#This Row],[year]]/12","v":0}]
[{"$nulls":14},{"$f":"SUM(tbl_категорія_витрат_15[[#This Row],[jan]:[dec]])","v":0},{"$f":"tbl_категорія_витрат_15[[#This Row],[year]]/12","v":0}]
[null,{"$f":"UPPER(\"РАЗОМ \" & B127)","v":"РАЗОМ  "},{"$f":"SUM(tbl_категорія_витрат_15[jan])","v":0},{"$f":"SUM(tbl_категорія_витрат_15[feb])","v":0},{"$f":"SUM(tbl_категорія_витрат_15[mar])","v":0},{"$f":"SUM(tbl_категорія_витрат_15[apr])","v":0},{"$f":"SUM(tbl_категорія_витрат_15[may])","v":0},{"$f":"SUM(tbl_категорія_витрат_15[jun])","v":0},{"$f":"SUM(tbl_категорія_витрат_15[jul])","v":0},{"$f":"SUM(tbl_категорія_витрат_15[aug])","v":0},{"$f":"SUM(tbl_категорія_витрат_15[sep])","v":0},{"$f":"SUM(tbl_категорія_витрат_15[oct])","v":0},{"$f":"SUM(tbl_категорія_витрат_15[nov])","v":0},{"$f":"SUM(tbl_категорія_витрат_15[dec])","v":0},{"$f":"SUM(tbl_категорія_витрат_15[year])","v":0},{"$f":"tbl_категорія_витрат_15[[#Totals],[year]]/12","v":0}]

{"sheet":"Настроювання","index":2,"n_rows":59,"n_cols":10,"rows_kept":59}
[null,"СІМ’Я КОВАЛЕНКІВ 2012 Р."]
[null,"дохід",null,"витрати"]
[null,"заробітна плата",null," "]
[null,"відсотковий дохід",null,"житло",null,"житло",null,"щоденні потреби",null,"діти"]
[null,"дивіденди",null,"щоденні потреби",null,"кредит або орендна плата",null,"бакалія",null,"лікування"]
[null,"отримані подарунки",null,"діти",null,"електроенергія",null,"особисті потреби",null,"одяг"]
[null,"виплати та компенсації",null,"транспорт",null,"газ",null,"одяг",null,"плата за навчання"]
[null,"субвенції із заощаджень",null,"лікування",null,"вода, каналізація та вивіз сміття",null,"послуги із прибирання",null,"шкільний обід"]
[null,"інше",null,"страхування",null,"телефон",null,"ресторан або їдальня",null,"шкільне приладдя"]
[{"$nulls":3},"освіта",null,"кабельне або супутникове телебачення",null,"хімчистка",null,"оплата послуг няні"]
[{"$nulls":3},"добродійність",null,"Інтернет",null,"салон краси та перукарня",null,"іграшки та ігри"]
[{"$nulls":3},"заощадження",null,"меблі та побутова техніка",null,"інше",null,"інше"]
[{"$nulls":3},"грошові зобов’язання",null,"газон або сад"]
[{"$nulls":3},"розваги",null,"утримання будинку"]
[{"$nulls":3},"домашні улюбленці",null,"ремонт"]
[{"$nulls":3},"передплати",null,"удосконалення"]
[{"$nulls":3},"відпустка",null,"інше"]
[{"$nulls":3},"різне"]
[]
[{"$nulls":5},"транспорт",null,"лікування",null,"страхування"]
[{"$nulls":5},"витрати на утримання авто",null,"терапевт або стоматолог",null,"авто"]
[{"$nulls":5},"бензин",null,"лікування та ліки",null,"здоров’я"]
[{"$nulls":5},"автобус, таксі або потяг",null,"абонементи в оздоровчі клуби",null,"нерухомість"]
[{"$nulls":5},"ремонт",null,"непередбачувані випадки",null,"життя"]
[{"$nulls":5},"реєстрація",null,"інше",null,"інше"]
[{"$nulls":5},"інше"]
[]
[]
[{"$nulls":5},"освіта",null,"добродійність",null,"заощадження"]
[{"$nulls":5},"плата за навчання",null,"подарунки",null,"страховий фонд"]
[{"$nulls":5},"книжки",null,"пожертви",null,"перерахування до заощаджень"]
[{"$nulls":5},"уроки музики",null,"церковні пожертви",null,"пенсія"]
[{"$nulls":5},"інше",null,"інше",null,"інвестиції"]
[{"$nulls":9},"коледж"]
[{"$nulls":9},"інше"]
[]
[]
[{"$nulls":5},"грошові зобов’язання",null,"розваги",null,"домашні улюбленці"]
[{"$nulls":5},"позика на навчання",null,"відео",null,"корм"]
[{"$nulls":5},"інші позики",null,"музика",null,"лікування"]
[{"$nulls":5},"кредитна картка 1",null,"ігри",null,"іграшки та інші товари"]
[{"$nulls":5},"кредитна картка 2",null,"оренда",null,"інше"]
[{"$nulls":5},"кредитна картка 3",null,"кіно або театр"]
[{"$nulls":5},"аліменти або утримання дитини",null,"концерти"]
[{"$nulls":5},"федеральні податки",null,"книжки"]
[{"$nulls":5},"податок на нерухомість",null,"хобі"]
[{"$nulls":5},"місцеві податки",null,"фото"]
[{"$nulls":5},"внески домовласникам",null,"спорт"]
[{"$nulls":5},"судові витрати",null,"відпочинок на природі"]
[{"$nulls":5},"інше",null,"іграшки та дрібнички"]
[{"$nulls":7},"інше"]
[]
[{"$nulls":5},"передплати",null,"відпустка",null,"різне"]
[{"$nulls":5},"газети",null,"подорожі",null,"банківські витрати"]
[{"$nulls":5},"журнали",null,"проживання",null,"поштові витрати"]
[{"$nulls":5},"внески",null,"харчування",null,"інше"]
[{"$nulls":5},"абонементи",null,"оренда авто"]
[{"$nulls":5},"інше",null,"розваги"]
[{"$nulls":7},"інше"]

{"sheet":"Дані діаграми","index":3,"n_rows":40,"n_cols":16,"rows_kept":40,"hidden":true}
[null,"*** Цей аркуш має бути прихований ***"]
[]
[]
[null,"Period",3]
[]
[null,null,"січ","лют","бер","кві","тра","чер","лип","сер","вер","жов","лис","гру","рік","у середньому"]
[null,{"$f":"LOWER(Бюджет!B127)","v":" "},{"$f":"SUM(tbl_категорія_витрат_15[jan])","v":0},{"$f":"SUM(tbl_категорія_витрат_15[feb])","v":0},{"$f":"SUM(tbl_категорія_витрат_15[mar])","v":0},{"$f":"SUM(tbl_категорія_витрат_15[apr])","v":0},{"$f":"SUM(tbl_категорія_витрат_15[may])","v":0},{"$f":"SUM(tbl_категорія_витрат_15[jun])","v":0},{"$f":"SUM(tbl_категорія_витрат_15[jul])","v":0},{"$f":"SUM(tbl_категорія_витрат_15[aug])","v":0},{"$f":"SUM(tbl_категорія_витрат_15[sep])","v":0},{"$f":"SUM(tbl_категорія_витрат_15[oct])","v":0},{"$f":"SUM(tbl_категорія_витрат_15[nov])","v":0},{"$f":"SUM(tbl_категорія_витрат_15[dec])","v":0},{"$f":"SUM(tbl_категорія_витрат_15[year])","v":0},{"$f":"SUM(tbl_категорія_витрат_15[avg])","v":0}]
[null,{"$f":"LOWER(Бюджет!B120)","v":" "},{"$f":"SUM(tbl_категорія_витрат_14[jan])","v":0},{"$f":"SUM(tbl_категорія_витрат_14[feb])","v":0},{"$f":"SUM(tbl_категорія_витрат_14[mar])","v":0},{"$f":"SUM(tbl_категорія_витрат_14[apr])","v":0},{"$f":"SUM(tbl_категорія_витрат_14[may])","v":0},{"$f":"SUM(tbl_категорія_витрат_14[jun])","v":0},{"$f":"SUM(tbl_категорія_витрат_14[jul])","v":0},{"$f":"SUM(tbl_категорія_витрат_14[aug])","v":0},{"$f":"SUM(tbl_категорія_витрат_14[sep])","v":0},{"$f":"SUM(tbl_категорія_витрат_14[oct])","v":0},{"$f":"SUM(tbl_категорія_витрат_14[nov])","v":0},{"$f":"SUM(tbl_категорія_витрат_14[dec])","v":0},{"$f":"SUM(tbl_категорія_витрат_14[year])","v":0},{"$f":"SUM(tbl_категорія_витрат_14[avg])","v":0}]
[null,{"$f":"LOWER(Бюджет!B113)","v":" "},{"$f":"SUM(tbl_категорія_витрат_13[jan])","v":0},{"$f":"SUM(tbl_категорія_витрат_13[feb])","v":0},{"$f":"SUM(tbl_категорія_витрат_13[mar])","v":0},{"$f":"SUM(tbl_категорія_витрат_13[apr])","v":0},{"$f":"SUM(tbl_категорія_витрат_13[may])","v":0},{"$f":"SUM(tbl_категорія_витрат_13[jun])","v":0},{"$f":"SUM(tbl_категорія_витрат_13[jul])","v":0},{"$f":"SUM(tbl_категорія_витрат_13[aug])","v":0},{"$f":"SUM(tbl_категорія_витрат_13[sep])","v":0},{"$f":"SUM(tbl_категорія_витрат_13[oct])","v":0},{"$f":"SUM(tbl_категорія_витрат_13[nov])","v":0},{"$f":"SUM(tbl_категорія_витрат_13[dec])","v":0},{"$f":"SUM(tbl_категорія_витрат_13[year])","v":0},{"$f":"SUM(tbl_категорія_витрат_13[avg])","v":0}]
[null,{"$f":"LOWER(Бюджет!B106)","v":" "},{"$f":"SUM(tbl_категорія_витрат_12[jan])","v":0},{"$f":"SUM(tbl_категорія_витрат_12[feb])","v":0},{"$f":"SUM(tbl_категорія_витрат_12[mar])","v":0},{"$f":"SUM(tbl_категорія_витрат_12[apr])","v":0},{"$f":"SUM(tbl_категорія_витрат_12[may])","v":0},{"$f":"SUM(tbl_категорія_витрат_12[jun])","v":0},{"$f":"SUM(tbl_категорія_витрат_12[jul])","v":0},{"$f":"SUM(tbl_категорія_витрат_12[aug])","v":0},{"$f":"SUM(tbl_категорія_витрат_12[sep])","v":0},{"$f":"SUM(tbl_категорія_витрат_12[oct])","v":0},{"$f":"SUM(tbl_категорія_витрат_12[nov])","v":0},{"$f":"SUM(tbl_категорія_витрат_12[dec])","v":0},{"$f":"SUM(tbl_категорія_витрат_12[year])","v":0},{"$f":"SUM(tbl_категорія_витрат_12[avg])","v":0}]
[null,{"$f":"LOWER(Бюджет!B99)","v":" "},{"$f":"SUM(tbl_категорія_витрат_11[jan])","v":0},{"$f":"SUM(tbl_категорія_витрат_11[feb])","v":0},{"$f":"SUM(tbl_категорія_витрат_11[mar])","v":0},{"$f":"SUM(tbl_категорія_витрат_11[apr])","v":0},{"$f":"SUM(tbl_категорія_витрат_11[may])","v":0},{"$f":"SUM(tbl_категорія_витрат_11[jun])","v":0},{"$f":"SUM(tbl_категорія_витрат_11[jul])","v":0},{"$f":"SUM(tbl_категорія_витрат_11[aug])","v":0},{"$f":"SUM(tbl_категорія_витрат_11[sep])","v":0},{"$f":"SUM(tbl_категорія_витрат_11[oct])","v":0},{"$f":"SUM(tbl_категорія_витрат_11[nov])","v":0},{"$f":"SUM(tbl_категорія_витрат_11[dec])","v":0},{"$f":"SUM(tbl_категорія_витрат_11[year])","v":0},{"$f":"SUM(tbl_категорія_витрат_11[avg])","v":0}]
[null,{"$f":"LOWER(Бюджет!B92)","v":"грошові зобов’язання"},{"$f":"SUM(tbl_категорія_витрат_10[jan])","v":650},{"$f":"SUM(tbl_категорія_витрат_10[feb])","v":200},{"$f":"SUM(tbl_категорія_витрат_10[mar])","v":200},{"$f":"SUM(tbl_категорія_витрат_10[apr])","v":650},{"$f":"SUM(tbl_категорія_витрат_10[may])","v":200},{"$f":"SUM(tbl_категорія_витрат_10[jun])","v":200},{"$f":"SUM(tbl_категорія_витрат_10[jul])","v":650},{"$f":"SUM(tbl_категорія_витрат_10[aug])","v":200},{"$f":"SUM(tbl_категорія_витрат_10[sep])","v":200},{"$f":"SUM(tbl_категорія_витрат_10[oct])","v":650},{"$f":"SUM(tbl_категорія_витрат_10[nov])","v":200},{"$f":"SUM(tbl_категорія_витрат_10[dec])","v":200},{"$f":"SUM(tbl_категорія_витрат_10[year])","v":{"v":4200,"d":"4,200"}},{"$f":"SUM(tbl_категорія_витрат_10[avg])","v":350}]
[null,{"$f":"LOWER(Бюджет!B85)","v":"заощадження"},{"$f":"SUM(tbl_категорія_витрат_09[jan])","v":800},{"$f":"SUM(tbl_категорія_витрат_09[feb])","v":800},{"$f":"SUM(tbl_категорія_витрат_09[mar])","v":800},{"$f":"SUM(tbl_категорія_витрат_09[apr])","v":800},{"$f":"SUM(tbl_категорія_витрат_09[may])","v":800},{"$f":"SUM(tbl_категорія_витрат_09[jun])","v":500},{"$f":"SUM(tbl_категорія_витрат_09[jul])","v":500},{"$f":"SUM(tbl_категорія_витрат_09[aug])","v":500},{"$f":"SUM(tbl_категорія_витрат_09[sep])","v":800},{"$f":"SUM(tbl_категорія_витрат_09[oct])","v":800},{"$f":"SUM(tbl_категорія_витрат_09[nov])","v":800},{"$f":"SUM(tbl_категорія_витрат_09[dec])","v":800},{"$f":"SUM(tbl_категорія_витрат_09[year])","v":{"v":8700,"d":"8,700"}},{"$f":"SUM(tbl_категорія_витрат_09[avg])","v":725}]
[null,{"$f":"LOWER(Бюджет!B78)","v":"добродійність"},{"$f":"SUM(tbl_категорія_витрат_08[jan])","v":0},{"$f":"SUM(tbl_категорія_витрат_08[feb])","v":100},{"$f":"SUM(tbl_категорія_витрат_08[mar])","v":100},{"$f":"SUM(tbl_категорія_витрат_08[apr])","v":100},{"$f":"SUM(tbl_категорія_витрат_08[may])","v":100},{"$f":"SUM(tbl_категорія_витрат_08[jun])","v":100},{"$f":"SUM(tbl_категорія_витрат_08[jul])","v":100},{"$f":"SUM(tbl_категорія_витрат_08[aug])","v":100},{"$f":"SUM(tbl_категорія_витрат_08[sep])","v":100},{"$f":"SUM(tbl_категорія_витрат_08[oct])","v":100},{"$f":"SUM(tbl_категорія_витрат_08[nov])","v":100},{"$f":"SUM(tbl_категорія_витрат_08[dec])","v":100},{"$f":"SUM(tbl_категорія_витрат_08[year])","v":{"v":1100,"d":"1,100"}},{"$f":"SUM(tbl_категорія_витрат_08[avg])","v":{"v":91.66666666666666,"d":"92"}}]
[null,{"$f":"LOWER(Бюджет!B71)","v":"освіта"},{"$f":"SUM(tbl_категорія_витрат_07[jan])","v":0},{"$f":"SUM(tbl_категорія_витрат_07[feb])","v":0},{"$f":"SUM(tbl_категорія_витрат_07[mar])","v":625},{"$f":"SUM(tbl_категорія_витрат_07[apr])","v":0},{"$f":"SUM(tbl_категорія_витрат_07[may])","v":0},{"$f":"SUM(tbl_категорія_витрат_07[jun])","v":0},{"$f":"SUM(tbl_категорія_витрат_07[jul])","v":0},{"$f":"SUM(tbl_категорія_витрат_07[aug])","v":0},{"$f":"SUM(tbl_категорія_витрат_07[sep])","v":625},{"$f":"SUM(tbl_категорія_витрат_07[oct])","v":0},{"$f":"SUM(tbl_категорія_витрат_07[nov])","v":0},{"$f":"SUM(tbl_категорія_витрат_07[dec])","v":0},{"$f":"SUM(tbl_категорія_витрат_07[year])","v":{"v":1250,"d":"1,250"}},{"$f":"SUM(tbl_категорія_витрат_07[avg])","v":{"v":104.16666666666667,"d":"104"}}]
[null,{"$f":"LOWER(Бюджет!B64)","v":"страхування"},{"$f":"SUM(tbl_категорія_витрат_06[jan])","v":975},{"$f":"SUM(tbl_категорія_витрат_06[feb])","v":975},{"$f":"SUM(tbl_категорія_витрат_06[mar])","v":975},{"$f":"SUM(tbl_категорія_витрат_06[apr])","v":975},{"$f":"SUM(tbl_категорія_витрат_06[may])","v":975},{"$f":"SUM(tbl_категорія_витрат_06[jun])","v":975},{"$f":"SUM(tbl_категорія_витрат_06[jul])","v":975},{"$f":"SUM(tbl_категорія_витрат_06[aug])","v":975},{"$f":"SUM(tbl_категорія_витрат_06[sep])","v":975},{"$f":"SUM(tbl_категорія_витрат_06[oct])","v":975},{"$f":"SUM(tbl_категорія_витрат_06[nov])","v":975},{"$f":"SUM(tbl_категорія_витрат_06[dec])","v":975},{"$f":"SUM(tbl_категорія_витрат_06[year])","v":{"v":11700,"d":"11,700"}},{"$f":"SUM(tbl_категорія_витрат_06[avg])","v":975}]
[null,{"$f":"LOWER(Бюджет!B57)","v":"лікування"},{"$f":"SUM(tbl_категорія_витрат_05[jan])","v":25},{"$f":"SUM(tbl_категорія_витрат_05[feb])","v":60},{"$f":"SUM(tbl_категорія_витрат_05[mar])","v":175},{"$f":"SUM(tbl_категорія_витрат_05[apr])","v":25},{"$f":"SUM(tbl_категорія_витрат_05[may])","v":60},{"$f":"SUM(tbl_категорія_витрат_05[jun])","v":60},{"$f":"SUM(tbl_категорія_витрат_05[jul])","v":60},{"$f":"SUM(tbl_категорія_витрат_05[aug])","v":25},{"$f":"SUM(tbl_категорія_витрат_05[sep])","v":175},{"$f":"SUM(tbl_категорія_витрат_05[oct])","v":60},{"$f":"SUM(tbl_категорія_витрат_05[nov])","v":25},{"$f":"SUM(tbl_категорія_витрат_05[dec])","v":25},{"$f":"SUM(tbl_категорія_витрат_05[year])","v":775},{"$f":"SUM(tbl_категорія_витрат_05[avg])","v":{"v":64.58333333333334,"d":"65"}}]
[null,{"$f":"LOWER(Бюджет!B48)","v":"транспорт"},{"$f":"SUM(tbl_категорія_витрат_04[jan])","v":{"v":1110,"d":"1,110"}},{"$f":"SUM(tbl_категорія_витрат_04[feb])","v":{"v":1025,"d":"1,025"}},{"$f":"SUM(tbl_категорія_витрат_04[mar])","v":925},{"$f":"SUM(tbl_категорія_витрат_04[apr])","v":{"v":1025,"d":"1,025"}},{"$f":"SUM(tbl_категорія_витрат_04[may])","v":{"v":1325,"d":"1,325"}},{"$f":"SUM(tbl_категорія_витрат_04[jun])","v":{"v":1200,"d":"1,200"}},{"$f":"SUM(tbl_категорія_витрат_04[jul])","v":{"v":1100,"d":"1,100"}},{"$f":"SUM(tbl_категорія_витрат_04[aug])","v":{"v":1200,"d":"1,200"}},{"$f":"SUM(tbl_категорія_витрат_04[sep])","v":{"v":1150,"d":"1,150"}},{"$f":"SUM(tbl_категорія_витрат_04[oct])","v":{"v":1025,"d":"1,025"}},{"$f":"SUM(tbl_категорія_витрат_04[nov])","v":925},{"$f":"SUM(tbl_категорія_витрат_04[dec])","v":925},{"$f":"SUM(tbl_категорія_витрат_04[year])","v":{"v":12935,"d":"12,935"}},{"$f":"SUM(tbl_категорія_витрат_04[avg])","v":{"v":1077.9166666666665,"d":"1,078"}}]
[null,{"$f":"LOWER(Бюджет!B39)","v":"діти"},{"$f":"SUM(tbl_категорія_витрат_03[jan])","v":{"v":2373,"d":"2,373"}},{"$f":"SUM(tbl_категорія_витрат_03[feb])","v":500},{"$f":"SUM(tbl_категорія_витрат_03[mar])","v":350},{"$f":"SUM(tbl_категорія_витрат_03[apr])","v":250},{"$f":"SUM(tbl_категорія_витрат_03[may])","v":350},{"$f":"SUM(tbl_категорія_витрат_03[jun])","v":450},{"$f":"SUM(tbl_категорія_витрат_03[jul])","v":200},{"$f":"SUM(tbl_категорія_витрат_03[aug])","v":545},{"$f":"SUM(tbl_категорія_витрат_03[sep])","v":350},{"$f":"SUM(tbl_категорія_витрат_03[oct])","v":350},{"$f":"SUM(tbl_категорія_витрат_03[nov])","v":250},{"$f":"SUM(tbl_категорія_витрат_03[dec])","v":350},{"$f":"SUM(tbl_категорія_витрат_03[year])","v":{"v":6318,"d":"6,318"}},{"$f":"SUM(tbl_категорія_витрат_03[avg])","v":{"v":526.5,"d":"527"}}]
[null,{"$f":"LOWER(Бюджет!B30)","v":"щоденні потреби"},{"$f":"SUM(tbl_категорія_витрат_02[jan])","v":795},{"$f":"SUM(tbl_категорія_витрат_02[feb])","v":375},{"$f":"SUM(tbl_категорія_витрат_02[mar])","v":550},{"$f":"SUM(tbl_категорія_витрат_02[apr])","v":825},{"$f":"SUM(tbl_категорія_витрат_02[may])","v":500},{"$f":"SUM(tbl_категорія_витрат_02[jun])","v":450},{"$f":"SUM(tbl_категорія_витрат_02[jul])","v":875},{"$f":"SUM(tbl_категорія_витрат_02[aug])","v":475},{"$f":"SUM(tbl_категорія_витрат_02[sep])","v":400},{"$f":"SUM(tbl_категорія_витрат_02[oct])","v":825},{"$f":"SUM(tbl_категорія_витрат_02[nov])","v":575},{"$f":"SUM(tbl_категорія_витрат_02[dec])","v":375},{"$f":"SUM(tbl_категорія_витрат_02[year])","v":{"v":7020,"d":"7,020"}},{"$f":"SUM(tbl_категорія_витрат_02[avg])","v":585}]
[null,{"$f":"LOWER(Бюджет!B21)","v":"житло"},{"$f":"SUM(tbl_категорія_витрат_01[jan])","v":{"v":1208,"d":"1,208"}},{"$f":"SUM(tbl_категорія_витрат_01[feb])","v":{"v":1208,"d":"1,208"}},{"$f":"SUM(tbl_категорія_витрат_01[mar])","v":{"v":1233,"d":"1,233"}},{"$f":"SUM(tbl_категорія_витрат_01[apr])","v":{"v":1208,"d":"1,208"}},{"$f":"SUM(tbl_категорія_витрат_01[may])","v":{"v":1158,"d":"1,158"}},{"$f":"SUM(tbl_категорія_витрат_01[jun])","v":{"v":1183,"d":"1,183"}},{"$f":"SUM(tbl_категорія_витрат_01[jul])","v":{"v":1283,"d":"1,283"}},{"$f":"SUM(tbl_категорія_витрат_01[aug])","v":{"v":1333,"d":"1,333"}},{"$f":"SUM(tbl_категорія_витрат_01[sep])","v":{"v":1208,"d":"1,208"}},{"$f":"SUM(tbl_категорія_витрат_01[oct])","v":{"v":1158,"d":"1,158"}},{"$f":"SUM(tbl_категорія_витрат_01[nov])","v":{"v":1208,"d":"1,208"}},{"$f":"SUM(tbl_категорія_витрат_01[dec])","v":{"v":1208,"d":"1,208"}},{"$f":"SUM(tbl_категорія_витрат_01[year])","v":{"v":14596,"d":"14,596"}},{"$f":"SUM(tbl_категорія_витрат_01[avg])","v":{"v":1216.3333333333335,"d":"1,216"}}]
[]
[]
[]
[]
[null,"Сукупний грошовий потік",{"$f":"SUM(Бюджет!$C$8:C$8)","v":{"v":-3714,"d":"-3,714"}},{"$f":"SUM(Бюджет!$C$8:D$8)","v":76},{"$f":"SUM(Бюджет!$C$8:E$8)","v":{"v":-1857,"d":"-1,857"}},{"$f":"SUM(Бюджет!$C$8:F$8)","v":{"v":-3670,"d":"-3,670"}},{"$f":"SUM(Бюджет!$C$8:G$8)","v":-138},{"$f":"SUM(Бюджет!$C$8:H$8)","v":{"v":-3731,"d":"-3,731"}},{"$f":"SUM(Бюджет!$C$8:I$8)","v":{"v":-7974,"d":"-7,974"}},{"$f":"SUM(Бюджет!$C$8:J$8)","v":{"v":-6827,"d":"-6,827"}},{"$f":"SUM(Бюджет!$C$8:K$8)","v":{"v":-8810,"d":"-8,810"}},{"$f":"SUM(Бюджет!$C$8:L$8)","v":{"v":-10753,"d":"-10,753"}},{"$f":"SUM(Бюджет!$C$8:M$8)","v":{"v":-6811,"d":"-6,811"}},{"$f":"SUM(Бюджет!$C$8:N$8)","v":{"v":-7769,"d":"-7,769"}},{"$f":"SUM(Бюджет!$C$8:O$8)","v":{"v":-15538,"d":"-15,538"}}]
[]
[null,"Позитивний грошовий потік за рік",{"$f":"IF(Бюджет!C$8<0,NA(),IF(період+2<>COLUMN(Бюджет!C$8),NA(),Бюджет!C$8))","v":{"$error":"#N/A"}},{"$f":"IF(Бюджет!D$8<0,NA(),IF(період+2<>COLUMN(Бюджет!D$8),NA(),Бюджет!D$8))","v":{"$error":"#N/A"}},{"$f":"IF(Бюджет!E$8<0,NA(),IF(період+2<>COLUMN(Бюджет!E$8),NA(),Бюджет!E$8))","v":{"$error":"#N/A"}},{"$f":"IF(Бюджет!F$8<0,NA(),IF(період+2<>COLUMN(Бюджет!F$8),NA(),Бюджет!F$8))","v":{"$error":"#N/A"}},{"$f":"IF(Бюджет!G$8<0,NA(),IF(період+2<>COLUMN(Бюджет!G$8),NA(),Бюджет!G$8))","v":{"$error":"#N/A"}},{"$f":"IF(Бюджет!H$8<0,NA(),IF(період+2<>COLUMN(Бюджет!H$8),NA(),Бюджет!H$8))","v":{"$error":"#N/A"}},{"$f":"IF(Бюджет!I$8<0,NA(),IF(період+2<>COLUMN(Бюджет!I$8),NA(),Бюджет!I$8))","v":{"$error":"#N/A"}},{"$f":"IF(Бюджет!J$8<0,NA(),IF(період+2<>COLUMN(Бюджет!J$8),NA(),Бюджет!J$8))","v":{"$error":"#N/A"}},{"$f":"IF(Бюджет!K$8<0,NA(),IF(період+2<>COLUMN(Бюджет!K$8),NA(),Бюджет!K$8))","v":{"$error":"#N/A"}},{"$f":"IF(Бюджет!L$8<0,NA(),IF(період+2<>COLUMN(Бюджет!L$8),NA(),Бюджет!L$8))","v":{"$error":"#N/A"}},{"$f":"IF(Бюджет!M$8<0,NA(),IF(період+2<>COLUMN(Бюджет!M$8),NA(),Бюджет!M$8))","v":{"$error":"#N/A"}},{"$f":"IF(Бюджет!N$8<0,NA(),IF(період+2<>COLUMN(Бюджет!N$8),NA(),Бюджет!N$8))","v":{"$error":"#N/A"}},{"$f":"IF(Бюджет!O$8<0,NA(),IF(період+2<>COLUMN(Бюджет!O$8),NA(),Бюджет!O$8))","v":{"$error":"#N/A"}}]
[null,"Негативний грошовий потік за рік",{"$f":"IF(Бюджет!C$8>=0,NA(),IF(період+2<>COLUMN(Бюджет!C$8),NA(),Бюджет!C$8))","v":{"$error":"#N/A"}},{"$f":"IF(Бюджет!D$8>=0,NA(),IF(період+2<>COLUMN(Бюджет!D$8),NA(),Бюджет!D$8))","v":{"$error":"#N/A"}},{"$f":"IF(Бюджет!E$8>=0,NA(),IF(період+2<>COLUMN(Бюджет!E$8),NA(),Бюджет!E$8))","v":{"v":-1933,"d":"-1,933"}},{"$f":"IF(Бюджет!F$8>=0,NA(),IF(період+2<>COLUMN(Бюджет!F$8),NA(),Бюджет!F$8))","v":{"$error":"#N/A"}},{"$f":"IF(Бюджет!G$8>=0,NA(),IF(період+2<>COLUMN(Бюджет!G$8),NA(),Бюджет!G$8))","v":{"$error":"#N/A"}},{"$f":"IF(Бюджет!H$8>=0,NA(),IF(період+2<>COLUMN(Бюджет!H$8),NA(),Бюджет!H$8))","v":{"$error":"#N/A"}},{"$f":"IF(Бюджет!I$8>=0,NA(),IF(період+2<>COLUMN(Бюджет!I$8),NA(),Бюджет!I$8))","v":{"$error":"#N/A"}},{"$f":"IF(Бюджет!J$8>=0,NA(),IF(період+2<>COLUMN(Бюджет!J$8),NA(),Бюджет!J$8))","v":{"$error":"#N/A"}},{"$f":"IF(Бюджет!K$8>=0,NA(),IF(період+2<>COLUMN(Бюджет!K$8),NA(),Бюджет!K$8))","v":{"$error":"#N/A"}},{"$f":"IF(Бюджет!L$8>=0,NA(),IF(період+2<>COLUMN(Бюджет!L$8),NA(),Бюджет!L$8))","v":{"$error":"#N/A"}},{"$f":"IF(Бюджет!M$8>=0,NA(),IF(період+2<>COLUMN(Бюджет!M$8),NA(),Бюджет!M$8))","v":{"$error":"#N/A"}},{"$f":"IF(Бюджет!N$8>=0,NA(),IF(період+2<>COLUMN(Бюджет!N$8),NA(),Бюджет!N$8))","v":{"$error":"#N/A"}},{"$f":"IF(Бюджет!O$8>=0,NA(),IF(період+2<>COLUMN(Бюджет!O$8),NA(),Бюджет!O$8))","v":{"$error":"#N/A"}}]
{"$rows_empty":7}
[null,{"$f":"LOWER(відобразити_тривалий_період)","v":"березень"}]
[null,{"$f":"відобразити_тривалий_період & \" дохід\"","v":"березень дохід"},{"$f":"INDEX(Бюджет!$C$6:$P$6,,період)","v":{"v":4000,"d":"4,000₴"}}]
[null,{"$f":"відобразити_тривалий_період & \" Витрати: \" & TEXT(INDEX(Бюджет!$C$7:$P$7,,період),\"#,##0₴\")","v":"березень Витрати: 5933,0₴"},{"$f":"INDEX(Бюджет!$C$7:$P$7,,період)","v":{"v":5933,"d":"5,933₴"}}]
[null,{"$f":"відобразити_тривалий_період & \" рух готівки\"","v":"березень рух готівки"},{"$f":"ABS(INDEX(Бюджет!$C$8:$P$8,,період))","v":{"v":1933,"d":"1,933₴"}},{"$f":"REPT(\"-\",INDEX(Бюджет!$C$8:$P$8,,період)<0)","v":"-"}]